fUSD/lending_fUSD_20240627
["ID","MTS","AMOUNT","RATE_DAILY","PERIOD"]
[330487724,1719497090313,-1474.89,0.00043561,120]
[330487725,1719497090350,-2609.74,0.00043561,120]
[330487726,1719497090391,-726.76,0.00043561,120]
[330487727,1719497090431,-9422.25,0.00043561,120]
[330487728,1719497090473,-591.75,0.00043561,120]
[330487729,1719497090512,-500.0,0.00043561,120]
[330487730,1719497090551,-500.0,0.00043561,120]
[330487731,1719497090590,-500.0,0.00043561,120]
[330487732,1719497090628,-608.79,0.00043561,120]
[330487733,1719497090666,-1358.37,0.00043561,120]
[330487734,1719497090702,-500.0,0.00043561,120]
[330487735,1719497090740,-1540.4,0.00043561,120]
[330487736,1719497090778,-1326.83,0.00043561,120]
[330487737,1719497090816,-2636.52,0.00043561,120]
[330487738,1719497090853,-226.62450302,0.00043561,120]
[330487739,1719497090890,-500.0,0.00043561,120]
[330487740,1719497090927,-1358.81,0.00043561,120]
[330487741,1719497090970,-1220.3,0.00043561,120]
[330487742,1719497091010,-1237.54,0.00043561,120]
[330487743,1719497091050,-500.0,0.00043561,120]
[330487744,1719497091088,-936.92,0.00043561,120]
[330487745,1719497091124,-500.0,0.00043561,120]
[330487746,1719497091161,-558.82,0.00043561,120]
[330487747,1719497091197,-850.97,0.00043561,120]
[330487748,1719497091234,-500.0,0.00043561,120]
[330487749,1719497091271,-934.52,0.00043561,120]
[330487750,1719497091308,-500.0,0.00043561,120]
[330487751,1719497091344,-716.46,0.00043561,120]
[330487752,1719497091382,-2568.03,0.00043561,120]
[330487753,1719497091419,-1143.33,0.00043561,120]
[330487754,1719497091455,-500.0,0.00043561,120]
[330487755,1719497091492,-500.0,0.00043561,120]
[330487756,1719497091529,-2647.51,0.00043561,120]
[330487757,1719497091566,-500.0,0.00043561,120]
[330487758,1719497091603,-1214.64,0.00043561,120]
[330487759,1719497091640,-585.9,0.00043561,120]
[330487760,1719497091677,-641.46,0.00043561,120]
[330487761,1719497091715,-956.24,0.00043561,120]
[330487762,1719497091754,-980.1,0.00043561,120]
[330487763,1719497091793,-719.79,0.00043561,120]
[330487764,1719497091831,-500.0,0.00043561,120]
[330487765,1719497091869,-500.0,0.00043561,120]
[330487766,1719497091909,-561.61,0.00043561,120]
[330487767,1719497091945,-500.0,0.00043561,120]
[330487768,1719497091984,-500.0,0.00043561,120]
[330487769,1719497092026,-1501.87,0.00043561,120]
[330487770,1719497092066,-1849.52,0.00043561,120]
[330487771,1719497092104,-500.0,0.00043561,120]
[330487772,1719497092143,-500.0,0.00043561,120]
[330487773,1719497092184,-1578.75,0.00043561,120]
[330487774,1719497092224,-560.09,0.00043561,120]
[330487775,1719497092263,-2225.52,0.00043561,120]
[330487776,1719497092301,-1270.08,0.00043561,120]
[330487777,1719497092337,-500.0,0.00043561,120]
[330487778,1719497092374,-1715.37,0.00043561,120]
[330487779,1719497092414,-500.0,0.00043561,120]
[330487780,1719497092450,-547.48,0.00043561,120]
[330487781,1719497092487,-2578.37,0.00043561,120]
[330487782,1719497092526,-622.94,0.00043561,120]
[330487783,1719497092564,-2244.1,0.00043561,120]
[330487784,1719497092601,-500.0,0.00043561,120]
[330487785,1719497092636,-1236.39,0.00043561,120]
[330487786,1719497092672,-500.4,0.00043561,120]
[330487787,1719497092709,-500.0,0.00043561,120]
[330487788,1719497092749,-688.63,0.00043561,120]
[330487789,1719497092787,-571.89,0.00043561,120]
[330487790,1719497092826,-500.0,0.00043561,120]
[330487791,1719497092863,-1098.31,0.00043561,120]
[330487792,1719497092902,-1315.88,0.00043561,120]
[330487793,1719497092943,-1702.85,0.00043561,120]
[330487794,1719497092980,-726.04,0.00043561,120]
[330487795,1719497093019,-568.34,0.00043561,120]
[330487796,1719497093055,-557.47991844,0.00043561,120]
[330487797,1719497093094,-1410.22,0.00043561,120]
[330487798,1719497093132,-1701.76,0.00043561,120]
[330487799,1719497093169,-14658.21,0.00043561,120]
[330487800,1719497093208,-500.0,0.00043561,120]
[330487801,1719497093245,-2143.22,0.00043561,120]
[330487802,1719497093282,-500.0,0.00043561,120]
[330487803,1719497093544,-1473.26,0.00043561,120]
[330487804,1719497093586,-2040.33,0.00043561,120]
[330487805,1719497093626,-1618.87,0.00043561,120]
[330487806,1719497093666,-500.0,0.00043561,120]
[330487807,1719497093707,-776.23,0.00043561,120]
[330487808,1719497093747,-1531.22,0.00043561,120]
[330487809,1719497093788,-633.05,0.00043561,120]
[330487810,1719497093827,-500.0,0.00043561,120]
[330487811,1719497093865,-500.0,0.00043561,120]
[330487812,1719497093904,-2925.75,0.00043561,120]
[330487813,1719497093944,-1330.26,0.00043561,120]
[330487814,1719497093980,-1523.54,0.00043561,120]
[330487815,1719497094017,-500.0,0.00043561,120]
[330487816,1719497094056,-500.0,0.00043561,120]
[330487817,1719497094096,-2515.74,0.00043561,120]
[330487818,1719497094134,-1150.61,0.00043561,120]
[330487819,1719497094172,-1381.6,0.00043561,120]
[330487820,1719497094211,-500.0,0.00043561,120]
[330487821,1719497094248,-500.0,0.00043561,120]
[330487822,1719497094284,-513.3289912,0.00043561,120]
[330487823,1719497094321,-500.0,0.00043561,120]
[330487824,1719497094358,-813.91,0.00043561,120]
[330487825,1719497094395,-500.0,0.00043561,120]
[330487826,1719497094434,-798.94,0.00043561,120]
[330487827,1719497094472,-500.0,0.00043561,120]
[330487828,1719497094510,-500.0,0.00043561,120]
[330487829,1719497094548,-500.0,0.00043561,120]
[330487830,1719497094587,-1554.71,0.00043561,120]
[330487831,1719497094625,-7480.86,0.00043561,120]
[330487832,1719497094667,-1879.85,0.00043561,120]
[330487833,1719497094708,-500.0,0.00043561,120]
[330487834,1719497094748,-1656.5,0.00043561,120]
[330487835,1719497094787,-500.0,0.00043561,120]
[330487836,1719497094824,-777.46,0.00043561,120]
[330487837,1719497094861,-500.0,0.00043561,120]
[330487838,1719497094898,-727.31,0.00043561,120]
[330487839,1719497094943,-2869.19,0.00043561,120]
[330487840,1719497094982,-2503.37,0.00043561,120]
[330487841,1719497095021,-500.0,0.00043561,120]
[330487842,1719497095060,-500.0,0.00043561,120]
[330487843,1719497095099,-3105.06,0.00043561,120]
[330487844,1719497095137,-500.0,0.00043561,120]
[330487845,1719497095175,-1347.47,0.00043561,120]
[330487846,1719497095212,-500.0,0.00043561,120]
[330487847,1719497095250,-500.0,0.00043561,120]
[330487848,1719497095288,-500.0,0.00043561,120]
[330487849,1719497095327,-1780.27,0.00043561,120]
[330487850,1719497095365,-500.0,0.00043561,120]
[330487851,1719497095401,-2876.79,0.00043561,120]
[330487852,1719497095441,-967.17,0.00043561,120]
[330487853,1719497095481,-2480.51,0.00043561,120]
[330487854,1719497095522,-641.70432646,0.00043561,120]
[330487855,1719497095563,-502.69,0.00043561,120]
[330487856,1719497095603,-152.90362375,0.00043561,120]
[330487857,1719497095643,-637.26,0.00043561,120]
[330487858,1719497095685,-559.06,0.00043561,120]
[330487859,1719497095729,-1115.49,0.00043561,120]
[330487860,1719497095770,-500.0,0.00043561,120]
[330487861,1719497095809,-764.85,0.00043561,120]
[330487862,1719497095848,-803.72,0.00043561,120]
[330487863,1719497095888,-420.11387956,0.00043561,120]
[330487864,1719497095926,-1567.85,0.00043561,120]
[330487865,1719497095967,-2922.46,0.00043561,120]
[330487866,1719497096006,-500.0,0.00043561,120]
[330487867,1719497096047,-1061.44,0.00043561,120]
[330487868,1719497096089,-10673.44,0.00043561,120]
[330487869,1719497096130,-693.21,0.00043561,120]
[330487870,1719497096173,-1121.61,0.00043561,120]
[330487871,1719497096211,-500.0,0.00043561,120]
[330487872,1719497096250,-2514.02,0.00043561,120]
[330487873,1719497096288,-545.5283077,0.00043561,120]
[330487874,1719497096325,-687.5,0.00043561,120]
[330487875,1719497096370,-591.6,0.00043561,120]
[330487876,1719497096410,-500.0,0.00043561,120]
[330487877,1719497096448,-500.0,0.00043561,120]
[330487878,1719497096486,-1443.52,0.00043561,120]
[330487879,1719497096524,-1370.11,0.00043561,120]
[330487880,1719497096561,-585.48,0.00043561,120]
[330487881,1719497096598,-2198.49,0.00043561,120]
[330487882,1719497096635,-725.24,0.00043561,120]
[330487883,1719497096673,-500.0,0.00043561,120]
[330487884,1719497096709,-500.0,0.00043561,120]
[330487885,1719497096747,-1058.8,0.00043561,120]
[330487886,1719497096785,-1129.65,0.00043561,120]
[330487887,1719497096822,-500.0,0.00043561,120]
[330487888,1719497096860,-500.0,0.00043561,120]
[330487889,1719497096899,-2690.86,0.00043561,120]
[330487890,1719497096942,-757.03,0.00043561,120]
[330487891,1719497096981,-1815.64,0.00043561,120]
[330487892,1719497097020,-529.91556941,0.00043561,120]
[330487893,1719497097058,-2506.27,0.00043561,120]
[330487894,1719497097096,-500.0,0.00043561,120]
[330487895,1719497097134,-582.13,0.00043561,120]
[330487896,1719497097172,-1597.2,0.00043561,120]
[330487897,1719497097207,-535.37,0.00043561,120]
[330487898,1719497097247,-7357.57,0.00043561,120]
[330487899,1719497097285,-500.0,0.00043561,120]
[330487900,1719497097323,-862.73,0.00043561,120]
[330487901,1719497097360,-946.37,0.00043561,120]
[330487902,1719497097398,-500.0,0.00043561,120]
[330487903,1719497097441,-1365.12,0.00043561,120]
[330487904,1719497097478,-500.0,0.00043561,120]
[330487905,1719497097516,-1470.75,0.00043561,120]
[330487906,1719497097554,-532.99,0.00043561,120]
[330487907,1719497097591,-2507.17,0.00043561,120]
[330487908,1719497097856,-523.86,0.00043561,120]
[330487909,1719497097895,-500.0,0.00043561,120]
[330487910,1719497097936,-594.09,0.00043561,120]
[330487911,1719497097975,-500.0,0.00043561,120]
[330487912,1719497098016,-743.41,0.00043561,120]
[330487913,1719497098053,-2477.72,0.00043561,120]
[330487914,1719497098091,-500.0,0.00043561,120]
[330487915,1719497098130,-2202.7,0.00043561,120]
[330487916,1719497098167,-784.71,0.00043561,120]
[330487917,1719497098205,-500.0,0.00043561,120]
[330487918,1719497098242,-500.0,0.00043561,120]
[330487919,1719497098280,-500.0,0.00043561,120]
[330487920,1719497098317,-150.0,0.00043561,30]
[330487921,1719497098354,-370.27180326,0.00043604,30]
[330487922,1719497098391,-180.40202542,0.00043604,30]
[330487923,1719497098429,-150.0,0.00043614,30]
[330487924,1719497098468,-370.27180326,0.0004365,30]
[330487925,1719497098507,-150.0,0.0004365,30]
[330487926,1719497098546,-180.40202542,0.0004365,30]
[330487927,1719497098585,-150.0,0.00043668,30]
[330487928,1719497098625,-370.27180326,0.00043695,30]
[330487929,1719497098666,-180.40202542,0.00043695,30]
[330487930,1719497098706,-150.0,0.0004371,30]
[330487931,1719497098746,-150.0,0.00043721,30]
[330487932,1719497098787,-370.27180326,0.00043741,30]
[330487933,1719497098826,-180.40202542,0.00043741,30]
[330487934,1719497098864,-500000.0,0.0004375,70]
[330487935,1719497098903,-150.0,0.00043774,30]
[330487936,1719497098946,-2000.0,0.00043781,30]
[330487937,1719497098984,-700.0,0.00043785,30]
[330487938,1719497099023,-500.0,0.00043785,30]
[330487939,1719497099060,-370.27180326,0.00043787,30]
[330487940,1719497099100,-180.40202542,0.00043787,30]
[330487941,1719497099138,-1000.0,0.000438,120]
[330487942,1719497099176,-1000.0,0.000438,120]
[330487943,1719497099214,-1000.0,0.000438,120]
[330487944,1719497099252,-150.0,0.00043827,30]
[330487945,1719497099290,-370.27180326,0.00043832,30]
[330487946,1719497099327,-180.40202542,0.00043832,30]
[330487947,1719497099364,-500.0,0.00043835,120]
[330487948,1719497099400,-1129.16683459,0.00043835,30]
[330487949,1719497099439,-500.0,0.00043835,120]
[330487950,1719497099480,-807.47,0.00043835,120]
[330487951,1719497099520,-500.0,0.00043835,120]
[330487952,1719497099559,-609.45428172,0.00043835,120]
[330487953,1719497099600,-500.0,0.00043835,120]
[330487954,1719497099639,-500.0,0.00043835,120]
[330487955,1719497099677,-513.9164695,0.00043835,120]
[330487956,1719497099716,-500.0,0.00043835,120]
[330487957,1719497099759,-500.0,0.00043835,120]
[330487958,1719497099799,-994.61,0.00043835,120]
[330487959,1719497099836,-500.0,0.00043835,120]
[330487960,1719497099872,-500.0,0.00043835,120]
[330487961,1719497099912,-1853.22,0.00043835,120]
[330487962,1719497099948,-895.45,0.00043835,120]
[330487963,1719497099985,-500.0,0.00043835,120]
[330487964,1719497100025,-500.0,0.00043835,120]
[330487965,1719497100063,-500.0,0.00043835,120]
[330487966,1719497100103,-638.65,0.00043835,120]
[330487967,1719497100142,-1253.58,0.00043835,120]
[330487968,1719497100181,-500.0,0.00043835,120]
[330487969,1719497100222,-500.0,0.00043835,120]
[330487970,1719497100262,-500.0,0.00043835,120]
[330487971,1719497100305,-500.0,0.00043835,120]
[330487972,1719497100346,-500.0,0.00043835,120]
[330487973,1719497100389,-550.95,0.00043835,120]
[330487974,1719497100430,-1533.48,0.00043835,120]
[330487975,1719497100470,-1069.35,0.00043835,120]
[330487976,1719497100511,-2992.71,0.00043835,120]
[330487977,1719497100552,-586.27,0.00043835,120]
[330487978,1719497100593,-500.0,0.00043835,120]
[330487979,1719497100633,-500.0,0.00043835,120]
[330487980,1719497100672,-500.0,0.00043835,120]
[330487981,1719497100714,-500.0,0.00043835,120]
[330487982,1719497100760,-780.27,0.00043835,120]
[330487983,1719497100800,-500.0,0.00043835,120]
[330487984,1719497100841,-290.59923429,0.00043835,120]
[330487985,1719497100882,-500.0,0.00043835,120]
[330487986,1719497100922,-609.38,0.00043835,120]
[330487987,1719497100964,-500.0,0.00043835,120]
[330487988,1719497101004,-500.0,0.00043835,120]
[330487989,1719497101044,-500.0,0.00043835,120]
[330487990,1719497101082,-500.0,0.00043835,120]
[330487991,1719497101120,-293.66384582,0.00043835,120]
[330487992,1719497101157,-500.0,0.00043835,120]
[330487993,1719497101196,-500.0,0.00043835,120]
[330487994,1719497101236,-500.57,0.00043835,120]
[330487995,1719497101275,-2224.64,0.00043835,120]
[330487996,1719497101312,-829.66,0.00043835,120]
[330487997,1719497101350,-1224.75,0.00043835,120]
[330487998,1719497101387,-500.0,0.00043835,120]
[330487999,1719497101425,-500.0,0.00043835,120]
[330488000,1719497101463,-500.0,0.00043835,120]
[330488001,1719497101500,-500.0,0.00043835,120]
[330488002,1719497101537,-500.0,0.00043835,120]
[330488003,1719497101576,-500.0,0.00043835,120]
[330488004,1719497101615,-720.01,0.00043835,120]
[330488005,1719497101654,-500.0,0.00043835,120]
[330488006,1719497101695,-2234.32,0.00043835,120]
[330488007,1719497101733,-500.0,0.00043835,120]
[330488008,1719497101771,-500.0,0.00043835,120]
[330488009,1719497101809,-448.95,0.00043835,120]
[330488010,1719497101849,-500.0,0.00043835,120]
[330488011,1719497101886,-500.0,0.00043835,120]
[330488012,1719497102159,-529.25,0.00043835,120]
[330488013,1719497102201,-500.0,0.00043835,120]
[330488014,1719497102240,-659.24,0.00043835,120]
[330488015,1719497102278,-626.68040281,0.00043835,120]
[330488016,1719497102318,-500.0,0.00043835,120]
[330488017,1719497102359,-500.0,0.00043835,120]
[330488018,1719497102398,-1446.15,0.00043835,120]
[330488019,1719497102443,-834.19,0.00043835,120]
[330488020,1719497102482,-500.0,0.00043835,120]
[330488021,1719497102522,-542.11,0.00043835,120]
[330488022,1719497102560,-453.21058709,0.00043835,120]
[330488023,1719497102598,-500.0,0.00043835,120]
[330488024,1719497102635,-610.18,0.00043835,120]
[330488025,1719497102674,-500.0,0.00043835,120]
[330488026,1719497102716,-1268.8,0.00043835,120]
[330488027,1719497102754,-500.0,0.00043835,120]
[330488028,1719497102792,-1250.15,0.00043835,120]
[330488029,1719497102831,-1074.42,0.00043835,120]
[330488030,1719497102868,-782.33,0.00043835,120]
[330488031,1719497102907,-776.53,0.00043835,120]
[330488032,1719497102951,-500.0,0.00043835,30]
[330488033,1719497102989,-500.0,0.00043835,120]
[330488034,1719497103027,-500.0,0.00043835,120]
[330488035,1719497103064,-754.02,0.00043835,120]
[330488036,1719497103101,-500.0,0.00043835,120]
[330488037,1719497103139,-500.0,0.00043835,120]
[330488038,1719497103177,-770.82,0.00043835,120]
[330488039,1719497103215,-500.0,0.00043835,120]
[330488040,1719497103251,-500.0,0.00043835,120]
[330488041,1719497103289,-1902.3,0.00043835,120]
[330488042,1719497103328,-911.8,0.00043835,120]
[330488043,1719497103366,-881.21,0.00043835,120]
[330488044,1719497103403,-500.0,0.00043835,120]
[330488045,1719497103446,-500.0,0.00043835,120]
[330488046,1719497103487,-500.0,0.00043835,120]
[330488047,1719497103528,-500.0,0.00043835,120]
[330488048,1719497103570,-722.15,0.00043835,120]
[330488049,1719497103612,-500.0,0.00043835,120]
[330488050,1719497103652,-500.0,0.00043835,120]
[330488051,1719497103692,-500.0,0.00043835,120]
[330488052,1719497103735,-500.0,0.00043835,120]
[330488053,1719497103775,-792.45,0.00043835,120]
[330488054,1719497103815,-1003.17,0.00043835,120]
[330488055,1719497103854,-1048.58,0.00043835,120]
[330488056,1719497103893,-500.0,0.00043835,120]
[330488057,1719497103936,-500.0,0.00043835,120]
[330488058,1719497103981,-615.63,0.00043835,120]
[330488059,1719497104021,-3039.14,0.00043835,120]
[330488060,1719497104062,-500.0,0.00043835,120]
[330488061,1719497104102,-500.0,0.00043835,120]
[330488062,1719497104141,-1234.0,0.00043835,120]
[330488063,1719497104179,-500.0,0.00043835,120]
[330488064,1719497104215,-500.0,0.00043835,120]
[330488065,1719497104252,-543.34,0.00043835,120]
[330488066,1719497104291,-1220.15,0.00043835,120]
[330488067,1719497104329,-524.26,0.00043835,120]
[330488068,1719497104367,-500.0,0.00043835,120]
[330488069,1719497104404,-564.87,0.00043835,120]
[330488070,1719497104446,-500.0,0.00043835,120]
[330488071,1719497104486,-1082.45,0.00043835,120]
[330488072,1719497104526,-520.97,0.00043835,120]
[330488073,1719497104566,-500.0,0.00043835,120]
[330488074,1719497104603,-500.0,0.00043835,120]
[330488075,1719497104640,-500.0,0.00043835,120]
[330488076,1719497104679,-500.0,0.00043835,120]
[330488077,1719497104718,-500.0,0.00043835,120]
[330488078,1719497104760,-3125.46,0.00043835,120]
[330488079,1719497104795,-325.59736687,0.00043835,120]
[330488080,1719497104834,-754.87,0.00043835,120]
[330488081,1719497104872,-520.35,0.00043835,120]
[330488082,1719497104910,-565.2,0.00043835,120]
[330488083,1719497104949,-500.0,0.00043835,120]
[330488084,1719497104987,-1814.92,0.00043835,120]
[330488085,1719497105025,-1814.92,0.00043835,120]
[330488086,1719497105064,-1338.11,0.00043835,120]
[330488087,1719497105101,-500.0,0.00043835,120]
[330488088,1719497105139,-935.06,0.00043835,120]
[330488089,1719497105178,-500.0,0.00043835,120]
[330488090,1719497105216,-722.97,0.00043835,120]
[330488091,1719497105254,-535.08,0.00043835,120]
[330488092,1719497105293,-576.51,0.00043835,120]
[330488093,1719497105332,-524.74,0.00043835,120]
[330488094,1719497105370,-500.0,0.00043835,120]
[330488095,1719497105419,-609.58554965,0.00043835,120]
[330488096,1719497105457,-569.26908498,0.00043835,120]
[330488097,1719497105497,-500.0,0.00043835,120]
[330488098,1719497105536,-500.0,0.00043835,120]
[330488099,1719497105575,-500.0,0.00043835,120]
[330488100,1719497105616,-500.0,0.00043835,120]
[330488101,1719497105658,-500.0,0.00043835,120]
[330488102,1719497105703,-500.0,0.00043835,120]
[330488103,1719497105749,-500.0,0.00043835,120]
[330488104,1719497105791,-500.0,0.00043835,120]
[330488105,1719497105832,-2188.83,0.00043835,120]
[330488106,1719497105872,-567.89430796,0.00043835,120]
[330488107,1719497105910,-500.0,0.00043835,120]
[330488108,1719497105953,-500.0,0.00043835,120]
[330488109,1719497105991,-782.31,0.00043835,120]
[330488110,1719497106031,-500.0,0.00043835,120]
[330488111,1719497106071,-777.35,0.00043835,120]
[330488112,1719497106110,-500.0,0.00043835,120]
[330488113,1719497106151,-966.32,0.00043835,120]
[330488114,1719497106190,-523.4,0.00043835,120]
[330488115,1719497106563,-500.0,0.00043835,120]
[330488116,1719497106601,-997.67,0.00043835,120]
[330488117,1719497106639,-1465.82,0.00043835,120]
[330488118,1719497106677,-500.0,0.00043835,120]
[330488119,1719497106716,-500.0,0.00043835,120]
[330488120,1719497106761,-1027.22,0.00043835,120]
[330488121,1719497106801,-241.67049804,0.00043835,120]
[330488122,1719497106841,-500.0,0.00043835,120]
[330488123,1719497106881,-2202.49,0.00043835,120]
[330488124,1719497106924,-500.0,0.00043835,120]
[330488125,1719497106968,-500.0,0.00043835,120]
[330488126,1719497107008,-500.0,0.00043835,120]
[330488127,1719497107046,-500.0,0.00043835,120]
[330488128,1719497107085,-500.0,0.00043835,120]
[330488129,1719497107124,-485.87789173,0.00043835,120]
[330488130,1719497107167,-2189.63,0.00043835,120]
[330488131,1719497107207,-500.0,0.00043835,120]
[330488132,1719497107247,-500.0,0.00043835,120]
[330488133,1719497107288,-502.86,0.00043835,120]
[330488134,1719497107327,-609.6,0.00043835,120]
[330488135,1719497107365,-1118.3,0.00043835,120]
[330488136,1719497107403,-500.16,0.00043835,120]
[330488137,1719497107443,-249.32063776,0.00043835,120]
[330488138,1719497107481,-500.0,0.00043835,120]
[330488139,1719497107521,-500.0,0.00043835,120]
[330488140,1719497107560,-599.09,0.00043835,120]
[330488141,1719497107601,-741.09,0.00043835,120]
[330488142,1719497107640,-649.86834962,0.00043835,120]
[330488143,1719497107681,-738.36,0.00043835,120]
[330488144,1719497107721,-710.44,0.00043835,120]
[330488145,1719497107766,-2021.89,0.00043835,120]
[330488146,1719497107808,-574.06,0.00043835,120]
[330488147,1719497107846,-818.05,0.00043835,120]
[330488148,1719497107886,-1180.91,0.00043835,120]
[330488149,1719497107925,-500.0,0.00043835,120]
[330488150,1719497107968,-699.4,0.00043835,120]
[330488151,1719497108020,-500.0,0.00043835,120]
[330488152,1719497108062,-500.0,0.00043835,120]
[330488153,1719497108102,-500.0,0.00043835,120]
[330488154,1719497108141,-500.0,0.00043835,120]
[330488155,1719497108180,-1019.57,0.00043835,120]
[330488156,1719497108221,-1341.1,0.00043835,120]
[330488157,1719497108260,-500.0,0.00043835,120]
[330488158,1719497108298,-2165.62,0.00043835,120]
[330488159,1719497108336,-1125.94,0.00043835,120]
[330488160,1719497108376,-2139.54,0.00043835,120]
[330488161,1719497108421,-1677.84,0.00043835,120]
[330488162,1719497108463,-541.78,0.00043835,120]
[330488163,1719497108506,-500.0,0.00043835,120]
[330488164,1719497108548,-1507.37,0.00043835,120]
[330488165,1719497108591,-592.39,0.00043835,120]
[330488166,1719497108632,-500.0,0.00043835,120]
[330488167,1719497108674,-500.0,0.00043835,120]
[330488168,1719497108716,-806.1,0.00043835,120]
[330488169,1719497108762,-500.0,0.00043835,120]
[330488170,1719497108804,-934.95,0.00043835,120]
[330488171,1719497108846,-500.0,0.00043835,120]
[330488172,1719497108887,-500.0,0.00043835,120]
[330488173,1719497108928,-1940.32,0.00043835,120]
[330488174,1719497108973,-541.46,0.00043835,120]
[330488175,1719497109014,-1210.43,0.00043835,120]
[330488176,1719497109057,-2498.29,0.00043835,120]
[330488177,1719497109099,-615.75,0.00043835,120]
[330488178,1719497109141,-500.0,0.00043835,120]
[330488179,1719497109184,-665.06,0.00043835,120]
[330488180,1719497109226,-500.0,0.00043835,120]
[330488181,1719497109268,-500.0,0.00043835,120]
[330488182,1719497109313,-2283.06,0.00043835,120]
[330488183,1719497109356,-1582.78,0.00043835,120]
[330488184,1719497109397,-559.06,0.00043835,120]
[330488185,1719497109437,-819.43,0.00043835,120]
[330488186,1719497109484,-1209.15,0.00043835,120]
[330488187,1719497109527,-500.0,0.00043835,120]
[330488188,1719497109570,-500.0,0.00043835,120]
[330488189,1719497109614,-612.39,0.00043835,120]
[330488190,1719497109656,-500.0,0.00043835,120]
[330488191,1719497109703,-712.13,0.00043835,120]
[330488192,1719497109750,-1261.4,0.00043835,120]
[330488193,1719497109797,-504.06,0.00043835,120]
[330488194,1719497109839,-2276.64,0.00043835,120]
[330488195,1719497109879,-500.0,0.00043835,120]
[330488196,1719497109920,-1893.96,0.00043835,120]
[330488197,1719497109963,-500.0,0.00043835,120]
[330488198,1719497110004,-500.0,0.00043835,120]
[330488199,1719497110045,-2084.48,0.00043835,120]
[330488200,1719497110085,-193.47352768,0.00043835,120]
[330488201,1719497110128,-151.55829237,0.00043835,120]
[330488202,1719497110171,-500.0,0.00043835,120]
[330488203,1719497110210,-500.0,0.00043835,120]
[330488204,1719497110250,-524.27,0.00043835,120]
[330488205,1719497110291,-500.0,0.00043835,120]
[330488206,1719497110332,-500.0,0.00043835,120]
[330488207,1719497110374,-574.39,0.00043835,120]
[330488208,1719497110415,-500.0,0.00043835,120]
[330488209,1719497110460,-958.69,0.00043835,120]
[330488210,1719497110501,-500.0,0.00043835,120]
[330488211,1719497110545,-500.0,0.00043835,120]
[330488212,1719497110586,-500.0,0.00043835,120]
[330488213,1719497110627,-500.0,0.00043835,120]
[330488214,1719497110672,-1061.93,0.00043835,120]
[330488215,1719497110715,-500.0,0.00043835,120]
[330488216,1719497110759,-2536.38,0.00043835,120]
[330488217,1719497110801,-500.0,0.00043835,120]
[330488218,1719497110844,-500.0,0.00043835,120]
[330488219,1719497110887,-533.35,0.00043835,120]
[330488220,1719497111210,-500.0,0.00043835,120]
[330488221,1719497111249,-500.0,0.00043835,120]
[330488222,1719497111287,-2087.08,0.00043835,120]
[330488223,1719497111324,-928.79,0.00043835,120]